[Event "RUS-ch Women Rapid 2019"]
[Site "Sochi"]
[Date "2019.10.15"]
[Round "5.9"]
[White "Bykova, Anastasia"]
[Black "Borisova, Ekaterina"]
[Result "1/2-1/2"]
[ECO "D11"]
[WhiteElo "2247"]
[BlackElo "2347"]
[Annotator "NA"]
[PlyCount "87"]
[EventDate "2019.10.15"]
[EventType "swiss"]
[EventCountry "RUS"]
[SourceTitle "playchess.com"]
[Source "ChessBase"]
[SourceQuality "1"]
[TimeControl "900+10"]

1. d4 {[%emt 0:00:00]} d5 {[%emt 0:00:00]} 2. c4 {[%emt 0:00:00]} c6 {[%emt 0:00:00]} 3. Nf3 {[%emt 0:00:00]} Nf6 {[%emt 0:00:00]} 4. e3 {[%emt 0:00:00]} Bg4 {[%emt 0:00:00]} 5. Be2 {[%emt 0:00:04]} Nbd7 {[%emt 0:00:00]} 6. Qb3 {[%emt 0:00:05]} Qb6 {[%emt 0:00:03]} 7. Nc3 {[%emt 0:00:02]} e6 {[%emt 0:00:01]} 8. h3 {[%emt 0:00:08]} Bh5 {[%emt 0:00:04]} 9. O-O {[%emt 0:00:03]} Be7 {[%emt 0:00:10]} 10. Re1 {[%emt 0:01:38]} O-O {[%emt 0:00:04]} 11. Bd2 {[%emt 0:00:23]} Rfd8 {[%emt 0:00:33]} 12. Rad1 {[%emt 0:01:42]} Rac8 {[%emt 0:00:17]} 13. Bf1 {[%emt 0:00:39]} Ne4 {[%emt 0:01:18]} 14. g4 {[%emt 0:00:51]} Nxd2 {[%emt 0:00:15]} 15. Rxd2 {[%emt 0:00:15]} Bg6 {[%emt 0:00:02]} 16. Bg2 {[%emt 0:01:16]} dxc4 {[%emt 0:00:09]} 17. Qxc4 {[%emt 0:00:04]} Qb4 {[%emt 0:01:11]} 18. Qe2 {[%emt 0:00:32]} Nb6 {[%emt 0:01:22]} 19. Ne5 {[%emt 0:00:18]} Bf6 {[%emt 0:01:00]} 20. a3 {[%emt 0:00:56]} Qb3 {[%emt 0:00:35]} 21. Nxg6 {[%emt 0:00:16]} hxg6 {[%emt 0:00:02]} 22. Ne4 {[%emt 0:00:09]} Be7 {[%emt 0:00:22]} 23. Rc1 {[%emt 0:00:10]} Nd5 {[%emt 0:00:44]} 24. Nc5 {[%emt 0:00:31]} Bxc5 {[%emt 0:00:24]} 25. Rxc5 {[%emt 0:00:12]} b6 {[%emt 0:00:07]} 26. Qc4 {[%emt 0:00:49]} Qxc4 {[%emt 0:00:53]} 27. Rxc4 {[%emt 0:00:02]} Rc7 {[%emt 0:02:18]} 28. Rdc2 {[%emt 0:00:04]} Rdc8 {[%emt 0:00:03]} 29. b4 {[%emt 0:00:39]} g5 {[%emt 0:00:22]} 30. e4 {[%emt 0:04:26]} Nf4 {[%emt 0:00:02]} 31. d5 {[%emt 0:00:01]} exd5 {[%emt 0:01:24]} 32. exd5 {[%emt 0:00:02]} c5 {[%emt 0:00:02]} 33. d6 {[%emt 0:00:27]} Rd7 {[%emt 0:00:17]} 34. bxc5 {[%emt 0:00:02]} bxc5 {[%emt 0:00:25]} 35. Rxc5 {[%emt 0:00:16]} Rxc5 {[%emt 0:00:02]} 36. Rxc5 {[%emt 0:00:01]} Rxd6 {[%emt 0:00:14]} 37. Be4 {[%emt 0:01:54]} g6 {[%emt 0:00:47]} 38. Kh2 {[%emt 0:00:08]} Rd4 {[%emt 0:00:32]} 39. Bc2 {[%emt 0:00:44]} Rd2 {[%emt 0:01:17]} 40. Kg3 {[%emt 0:00:02]} Kg7 {[%emt 0:00:24]} 41. Be4 {[%emt 0:00:16]} Rd4 {[%emt 0:00:32]} 42. Bc2 {[%emt 0:00:06]} Rd2 {[%emt 0:01:35]} 43. Be4 {[%emt 0:00:01]} Rd4 {[%emt 0:01:34]} 44. Bc2 {[%emt 0:00:01]} 1/2-1/2

[Event "RUS-ch Women Rapid 2019"]
[Site "Sochi"]
[Date "2019.10.15"]
[Round "5.10"]
[White "Ivanova, Anastasia S."]
[Black "Semenova, Elena"]
[Result "1/2-1/2"]
[ECO "C89"]
[WhiteElo "1866"]
[BlackElo "2282"]
[Annotator "NA"]
[PlyCount "73"]
[EventDate "2019.10.15"]
[EventType "swiss"]
[EventCountry "RUS"]
[SourceTitle "playchess.com"]
[Source "ChessBase"]
[SourceQuality "1"]
[TimeControl "900+10"]

1. e4 {[%emt 0:00:00]} e5 {[%emt 0:00:00]} 2. Nf3 {[%emt 0:00:00]} Nc6 {[%emt 0:00:00]} 3. Bb5 {[%emt 0:00:00]} a6 {[%emt 0:00:00]} 4. Ba4 {[%emt 0:00:00]} Nf6 {[%emt 0:00:10]} 5. O-O {[%emt 0:00:00]} Be7 {[%emt 0:00:32]} 6. Re1 {[%emt 0:00:00]} b5 {[%emt 0:00:02]} 7. Bb3 {[%emt 0:00:00]} O-O {[%emt 0:00:02]} 8. c3 {[%emt 0:00:01]} d5 {[%emt 0:00:21]} 9. exd5 {[%emt 0:00:15]} Nxd5 {[%emt 0:00:02]} 10. Nxe5 {[%emt 0:00:19]} Nxe5 {[%emt 0:00:02]} 11. Rxe5 {[%emt 0:00:03]} c6 {[%emt 0:00:01]} 12. d4 {[%emt 0:00:56]} Bd6 {[%emt 0:00:11]} 13. Re1 {[%emt 0:01:00]} Qh4 {[%emt 0:00:04]} 14. g3 {[%emt 0:01:25]} Qh3 {[%emt 0:00:08]} 15. Bxd5 {[%emt 0:00:52]} cxd5 {[%emt 0:00:04]} 16. Qf3 {[%emt 0:00:09]} Bf5 {[%emt 0:04:26]} 17. Qg2 {[%emt 0:01:37]} Qh5 {[%emt 0:01:25]} 18. f3 {[%emt 0:04:20]} Bh3 {[%emt 0:02:03]} 19. Qf2 {[%emt 0:00:31]} f5 {[%emt 0:01:22]} 20. f4 {[%emt 0:04:14]} Rae8 {[%emt 0:00:14]} 21. Be3 {[%emt 0:00:30]} g5 {[%emt 0:03:20]} 22. Nd2 {[%emt 0:01:30]} h6 {[%emt 0:03:03]} 23. Qf3 {[%emt 0:00:12]} Qxf3 {[%emt 0:00:34]} 24. Nxf3 {[%emt 0:00:02]} gxf4 {[%emt 0:00:02]} 25. Bxf4 {[%emt 0:00:07]} Bxf4 {[%emt 0:00:07]} 26. gxf4 {[%emt 0:00:02]} Re4 {[%emt 0:00:01]} 27. Kf2 {[%emt 0:00:18]} Bg4 {[%emt 0:00:33]} 28. Rxe4 {[%emt 0:00:31]} fxe4 {[%emt 0:00:13]} 29. Ne5 {[%emt 0:00:01]} Bh5 {[%emt 0:00:21]} 30. Rg1+ {[%emt 0:00:10]} Kh7 {[%emt 0:00:01]} 31. Ke3 {[%emt 0:00:01]} Be8 {[%emt 0:00:12]} 32. Rg3 {[%emt 0:00:18]} Rf5 {[%emt 0:00:05]} 33. Rh3 {[%emt 0:00:17]} Kg7 {[%emt 0:00:28]} 34. Rg3+ {[%emt 0:00:13]} Kh7 {[%emt 0:00:17]} 35. Rh3 {[%emt 0:00:27]} Kg7 {[%emt 0:00:01]} 36. Rg3+ {[%emt 0:00:18]} Kh7 {[%emt 0:00:04]} 37. Rh3 {[%emt 0:00:07]} 1/2-1/2

[Event "RUS-ch Women Rapid 2019"]
[Site "Sochi"]
[Date "2019.10.15"]
[Round "5.11"]
[White "Fominykh, Maria"]
[Black "Goltseva, Ekaterina"]
[Result "0-1"]
[ECO "A06"]
[WhiteElo "2206"]
[BlackElo "2317"]
[Annotator "NA"]
[PlyCount "128"]
[EventDate "2019.10.15"]
[EventType "swiss"]
[EventCountry "RUS"]
[SourceTitle "playchess.com"]
[Source "ChessBase"]
[SourceQuality "1"]
[TimeControl "900+10"]

1. Nf3 {[%emt 0:00:00]} d5 {[%emt 0:00:05]} 2. g3 {[%emt 0:00:00]} Nf6 {[%emt 0:00:02]} 3. Bg2 {[%emt 0:00:00]} c5 {[%emt 0:00:03]} 4. d3 {[%emt 0:00:08]} e6 {[%emt 0:00:06]} 5. O-O {[%emt 0:00:06]} Nc6 {[%emt 0:00:02]} 6. Nbd2 {[%emt 0:00:01]} g6 {[%emt 0:00:02]} 7. e4 {[%emt 0:00:04]} Bg7 {[%emt 0:00:01]} 8. Re1 {[%emt 0:00:14]} O-O {[%emt 0:00:02]} 9. c3 {[%emt 0:00:44]} a5 {[%emt 0:00:02]} 10. a4 {[%emt 0:00:23]} b6 {[%emt 0:00:03]} 11. Qc2 {[%emt 0:00:43]} Ba6 {[%emt 0:00:43]} 12. Bf1 {[%emt 0:00:40]} Rc8 {[%emt 0:00:27]} 13. Nb1 {[%emt 0:01:25]} Nd7 {[%emt 0:02:29]} 14. Bg5 {[%emt 0:02:31]} Qc7 {[%emt 0:01:01]} 15. Bf4 {[%emt 0:03:01]} e5 {[%emt 0:00:56]} 16. Bd2 {[%emt 0:00:41]} Qd6 {[%emt 0:02:46]} 17. Na3 {[%emt 0:03:26]} f5 {[%emt 0:00:44]} 18. exd5 {[%emt 0:00:30]} Qxd5 {[%emt 0:00:09]} 19. Ng5 h6 {[%emt 0:00:38]} 20. Bg2 {[%emt 0:00:33]} Qxd3 {[%emt 0:00:23]} 21. Qxd3 {[%emt 0:00:08]} Bxd3 {[%emt 0:00:02]} 22. Bd5+ {[%emt 0:00:46]} Kh8 {[%emt 0:00:17]} 23. Nf7+ {[%emt 0:00:32]} Kh7 {[%emt 0:00:17]} 24. Nd6 {[%emt 0:00:08]} Ne7 {[%emt 0:01:08]} 25. Nxc8 {[%emt 0:00:21]} Nxd5 {[%emt 0:00:01]} 26. Nd6 {[%emt 0:00:13]} e4 {[%emt 0:00:32]} 27. f4 {[%emt 0:01:14]} exf3 {[%emt 0:01:11]} 28. Re6 {[%emt 0:00:19]} Rf6 {[%emt 0:00:49]} 29. Rae1 {[%emt 0:00:22]} Be2 {[%emt 0:00:05]} 30. Rxf6 {[%emt 0:00:08]} N7xf6 {[%emt 0:00:09]} 31. Rc1 {[%emt 0:00:34]} Ng4 {[%emt 0:00:14]} 32. Be1 {[%emt 0:00:02]} Ne5 {[%emt 0:00:30]} 33. Bf2 {[%emt 0:00:04]} h5 {[%emt 0:00:42]} 34. Nc2 {[%emt 0:00:18]} Nd3 {[%emt 0:00:28]} 35. Rb1 {[%emt 0:00:03]} Nf6 {[%emt 0:00:14]} 36. h3 {[%emt 0:00:14]} Bf8 {[%emt 0:00:09]} 37. Nf7 {[%emt 0:00:03]} Ne4 {[%emt 0:00:24]} 38. Be3 {[%emt 0:00:19]} Be7 {[%emt 0:01:02]} 39. Kh2 {[%emt 0:00:17]} Kg7 {[%emt 0:00:14]} 40. Nh6 {[%emt 0:00:10]} f2 {[%emt 0:00:06]} 41. Bxf2 {[%emt 0:00:11]} Nexf2 {[%emt 0:00:05]} 42. Nxf5+ {[%emt 0:00:04]} gxf5 {[%emt 0:00:01]} 43. Ne3 {[%emt 0:00:01]} Kg6 {[%emt 0:00:20]} 44. Nd5 {[%emt 0:00:14]} Bd8 {[%emt 0:00:35]} 45. b4 {[%emt 0:00:14]} cxb4 {[%emt 0:00:37]} 46. cxb4 {[%emt 0:00:01]} axb4 {[%emt 0:00:06]} 47. Nxb4 {[%emt 0:00:04]} Nxb4 {[%emt 0:00:03]} 48. Rxb4 {[%emt 0:00:01]} Ne4 {[%emt 0:00:14]} 49. Rb2 {[%emt 0:00:41]} Bd1 {[%emt 0:00:10]} 50. Rb4 {[%emt 0:00:12]} Bc7 {[%emt 0:00:14]} 51. Kg2 {[%emt 0:00:06]} Nc5 {[%emt 0:00:23]} 52. g4 {[%emt 0:00:15]} hxg4 {[%emt 0:00:05]} 53. hxg4 {[%emt 0:00:01]} fxg4 {[%emt 0:00:01]} 54. Rd4 {[%emt 0:00:05]} Bf3+ {[%emt 0:00:06]} 55. Kf2 {[%emt 0:00:05]} Kg5 {[%emt 0:00:13]} 56. Rc4 {[%emt 0:00:15]} Bd6 {[%emt 0:00:28]} 57. Ke3 {[%emt 0:00:09]} Bc6 {[%emt 0:00:06]} 58. Rd4 {[%emt 0:00:13]} Be5 {[%emt 0:00:02]} 59. Rb4 {[%emt 0:00:04]} Nxa4 {[%emt 0:00:06]} 60. Kf2 {[%emt 0:00:11]} b5 {[%emt 0:00:03]} 61. Kg1 {[%emt 0:00:06]} g3 {[%emt 0:00:04]} 62. Kf1 {[%emt 0:00:09]} g2+ {[%emt 0:00:03]} 63. Kg1 {[%emt 0:00:00]} Nc3 {[%emt 0:00:05]} 64. Kf2 {[%emt 0:00:21]} Bh2 {[%emt 0:00:07]} 0-1

[Event "RUS-ch Women Rapid 2019"]
[Site "Sochi"]
[Date "2019.10.15"]
[Round "5.12"]
[White "Charochkina, Daria"]
[Black "Chekmareva, Liya"]
[Result "1-0"]
[ECO "A02"]
[WhiteElo "2289"]
[BlackElo "2023"]
[Annotator "NA"]
[PlyCount "43"]
[EventDate "2019.10.15"]
[EventType "swiss"]
[EventCountry "RUS"]
[SourceTitle "playchess.com"]
[Source "ChessBase"]
[SourceQuality "1"]
[TimeControl "900+10"]

1. f4 c5 2. e3 g6 3. Nf3 Bg7 4. d4 Nf6 5. c3 b6 6. Bd3 Bb7 7. O-O O-O 8. Nbd2 Nc6 9. Qe2 cxd4 10. exd4 Qc7 11. f5 Nh5 12. Ne4 Rae8 13. Bd2 d5 14. Neg5 e5 15. fxe6 fxe6 16. Nxh7 Kxh7 17. Ng5+ Kg8 18. Rxf8+ Bxf8 19. Bxg6 Nf4 20. Bxf4 Qxf4 21. Bxe8 Qxg5 22. Bxc6 1-0

[Event "RUS-ch Women Rapid 2019"]
[Site "Sochi"]
[Date "2019.10.16"]
[Round "6.1"]
[White "Pogonina, Natalija"]
[Black "Sukhareva, Evgeniya"]
[Result "1-0"]
[ECO "A62"]
[WhiteElo "2501"]
[BlackElo "2122"]
[Annotator "ChessBase"]
[PlyCount "67"]
[EventDate "2019.10.15"]
[EventType "swiss"]
[EventCountry "RUS"]
[SourceTitle "playchess.com"]
[Source "ChessBase"]
[SourceQuality "1"]
[TimeControl "900+10"]

1. d4 {[%emt 0:00:00]} Nf6 {[%emt 0:00:00]} 2. c4 {[%emt 0:00:00]} e6 {[%emt 0:00:00]} 3. g3 {[%emt 0:00:00]} c5 {[%emt 0:00:09]} 4. d5 {[%emt 0:00:00]} exd5 {[%emt 0:00:01]} 5. cxd5 {[%emt 0:00:01]} d6 {[%emt 0:00:02]} 6. Bg2 {[%emt 0:00:04]} g6 {[%emt 0:00:02]} 7. Nc3 {[%emt 0:00:02]} Bg7 {[%emt 0:00:02]} 8. Nf3 {[%emt 0:00:03]} O-O {[%emt 0:00:04]} 9. O-O {[%emt 0:00:02]} Re8 {[%emt 0:00:25]} 10. Bf4 {[%emt 0:00:06]} Nh5 {[%emt 0:00:50]} 11. Bg5 {[%emt 0:00:09]} f6 {[%emt 0:00:19]} 12. Bd2 {[%emt 0:00:05]} Na6 {[%emt 0:00:24]} 13. e4 {[%emt 0:00:43]} f5 {[%emt 0:02:20]} 14. exf5 {[%emt 0:00:42]} Bxf5 {[%emt 0:00:23]} 15. Ng5 {[%emt 0:00:07]} Qd7 {[%emt 0:03:30]} 16. Ne6 {[%emt 0:00:13]} Rxe6 {[%emt 0:00:10]} 17. dxe6 {[%emt 0:00:03]} Bxe6 {[%emt 0:00:02]} 18. Re1 {[%emt 0:00:32]} Nc7 {[%emt 0:03:50]} 19. Bxb7 {[%emt 0:03:08]} Rb8 {[%emt 0:01:15]} 20. Bf3 {[%emt 0:00:03]} Nf6 {[%emt 0:00:02]} 21. Bf4 {[%emt 0:00:30]} Nfe8 {[%emt 0:00:55]} 22. Qd2 {[%emt 0:00:37]} Qf7 {[%emt 0:00:46]} 23. Bg2 {[%emt 0:01:02]} d5 {[%emt 0:00:51]} 24. Rxe6 {[%emt 0:03:27]} Qxe6 {[%emt 0:00:23]} 25. Bxd5 {[%emt 0:00:06]} Nxd5 {[%emt 0:00:11]} 26. Bxb8 {[%emt 0:00:04]} Ndf6 {[%emt 0:01:48]} 27. Re1 {[%emt 0:00:26]} Qb6 {[%emt 0:00:25]} 28. Be5 {[%emt 0:00:05]} Qc6 {[%emt 0:00:10]} 29. Qe2 {[%emt 0:01:56]} h6 {[%emt 0:00:18]} 30. Ne4 {[%emt 0:00:27]} Kh7 {[%emt 0:00:07]} 31. Bc3 {[%emt 0:00:21]} c4 {[%emt 0:00:13]} 32. Nxf6+ {[%emt 0:00:07]} Nxf6 {[%emt 0:00:01]} 33. Qe7 {[%emt 0:00:10]} Kh8 {[%emt 0:00:16]} 34. Re6 {[%emt 0:00:17]} 1-0

[Event "RUS-ch Women Rapid 2019"]
[Site "Sochi"]
[Date "2019.10.16"]
[Round "6.2"]
[White "Chernyak, Viktoria"]
[Black "Voit, Daria"]
[Result "0-1"]
[ECO "A35"]
[WhiteElo "2284"]
[BlackElo "2361"]
[Annotator "NA"]
[PlyCount "48"]
[EventDate "2019.10.15"]
[EventType "swiss"]
[EventCountry "RUS"]
[SourceTitle "playchess.com"]
[Source "ChessBase"]
[SourceQuality "1"]
[TimeControl "900+10"]

1. Nf3 {[%emt 0:00:00]} Nf6 {[%emt 0:00:25]} 2. c4 {[%emt 0:00:00]} c5 {[%emt 0:00:07]} 3. Nc3 {[%emt 0:00:02]} Nc6 {[%emt 0:00:13]} 4. e3 {[%emt 0:00:03]} e5 {[%emt 0:00:47]} 5. d4 {[%emt 0:00:06]} e4 {[%emt 0:00:05]} 6. Ne5 {[%emt 0:00:35]} Bd6 {[%emt 0:00:46]} 7. f4 {[%emt 0:02:14]} exf3 {[%emt 0:00:16]} 8. Nxf3 {[%emt 0:00:04]} Qe7 {[%emt 0:00:38]} 9. Be2 {[%emt 0:00:09]} O-O {[%emt 0:00:31]} 10. d5 {[%emt 0:03:21]} Ne5 {[%emt 0:00:14]} 11. Nxe5 {[%emt 0:00:15]} Bxe5 {[%emt 0:01:16]} 12. Qd3 {[%emt 0:00:47]} d6 {[%emt 0:00:30]} 13. Bd2 {[%emt 0:00:25]} a6 {[%emt 0:01:01]} 14. O-O-O {[%emt 0:01:12]} b5 {[%emt 0:00:12]} 15. Rdf1 {[%emt 0:00:40]} bxc4 {[%emt 0:00:17]} 16. Qxc4 {[%emt 0:00:20]} Bd7 {[%emt 0:02:13]} 17. Rf2 {[%emt 0:02:05]} Bb5 {[%emt 0:00:20]} 18. Qb3 {[%emt 0:00:45]} Bxc3 {[%emt 0:01:44]} 19. bxc3 {[%emt 0:00:09]} Ne4 {[%emt 0:00:04]} 20. Bxb5 {[%emt 0:00:39]} Nxf2 {[%emt 0:00:04]} 21. Rf1 {[%emt 0:00:01]} axb5 {[%emt 0:00:33]} 22. Rxf2 {[%emt 0:00:09]} Qe4 {[%emt 0:00:44]} 23. Kd1 {[%emt 0:00:39]} Qd3 {[%emt 0:01:35]} 24. Rf4 {[%emt 0:00:26]} Rfe8 {[%emt 0:00:06]} 0-1

[Event "RUS-ch Women Rapid 2019"]
[Site "Sochi"]
[Date "2019.10.16"]
[Round "6.3"]
[White "Bodnaruk, Anastasia"]
[Black "Belkova, Diana"]
[Result "1-0"]
[ECO "B36"]
[WhiteElo "2449"]
[BlackElo "2030"]
[Annotator "NA"]
[PlyCount "73"]
[EventDate "2019.10.15"]
[EventType "swiss"]
[EventCountry "RUS"]
[SourceTitle "playchess.com"]
[Source "ChessBase"]
[SourceQuality "1"]
[TimeControl "900+10"]

1. e4 {[%emt 0:00:00]} c5 {[%emt 0:00:00]} 2. Nf3 {[%emt 0:00:00]} Nc6 {[%emt 0:00:00]} 3. d4 {[%emt 0:00:00]} cxd4 {[%emt 0:00:00]} 4. Nxd4 {[%emt 0:00:00]} g6 {[%emt 0:00:00]} 5. c4 {[%emt 0:00:00]} Nf6 $14 {[%emt 0:00:00]} 6. Nc3 {[%emt 0:00:00]} Nxd4 {[%emt 0:00:00]} 7. Qxd4 {[%emt 0:00:00]} d6 {[%emt 0:00:00]} 8. Be3 {[%emt 0:01:32]} Bg7 {[%emt 0:00:02]} 9. f3 {[%emt 0:00:03]} O-O {[%emt 0:00:03]} 10. Qd2 {[%emt 0:00:01]} Be6 {[%emt 0:00:02]} 11. Rc1 {[%emt 0:00:24]} Qa5 {[%emt 0:00:13]} 12. Be2 {[%emt 0:00:36]} Rfc8 {[%emt 0:00:02]} 13. b3 {[%emt 0:00:11]} a6 {[%emt 0:00:09]} 14. O-O {[%emt 0:02:17]} b5 {[%emt 0:00:10]} 15. Nd5 {[%emt 0:02:05]} Qxd2 {[%emt 0:00:06]} 16. Bxd2 {[%emt 0:00:01]} Nxd5 {[%emt 0:04:05]} 17. cxd5 {[%emt 0:01:28]} Bd4+ {[%emt 0:00:13]} 18. Kh1 {[%emt 0:00:01]} Bd7 {[%emt 0:00:02]} 19. Bd3 {[%emt 0:00:45]} Rxc1 {[%emt 0:04:03]} 20. Rxc1 {[%emt 0:00:01]} Rc8 {[%emt 0:00:01]} 21. Rxc8+ {[%emt 0:00:46]} Bxc8 {[%emt 0:00:01]} 22. g3 {[%emt 0:00:01]} f6 {[%emt 0:01:25]} 23. Kg2 {[%emt 0:00:07]} Kf7 {[%emt 0:00:02]} 24. f4 {[%emt 0:01:32]} e6 {[%emt 0:00:08]} 25. dxe6+ {[%emt 0:00:12]} Bxe6 {[%emt 0:00:22]} 26. Kf3 {[%emt 0:00:15]} d5 {[%emt 0:01:21]} 27. f5 {[%emt 0:00:39]} dxe4+ {[%emt 0:00:33]} 28. Kxe4 {[%emt 0:00:14]} Bg1 {[%emt 0:00:59]} 29. fxe6+ {[%emt 0:00:01]} Kxe6 {[%emt 0:00:01]} 30. Be3 {[%emt 0:01:14]} Bxe3 {[%emt 0:00:17]} 31. Kxe3 {[%emt 0:00:01]} Kd5 {[%emt 0:00:01]} 32. Be4+ {[%emt 0:00:12]} Kc5 {[%emt 0:00:04]} 33. a3 {[%emt 0:00:04]} a5 {[%emt 0:00:29]} 34. g4 {[%emt 0:00:36]} a4 {[%emt 0:00:13]} 35. bxa4 {[%emt 0:00:11]} bxa4 {[%emt 0:00:01]} 36. Bc2 {[%emt 0:00:04]} Kb5 {[%emt 0:00:26]} 37. Kd4 {[%emt 0:00:01]} 1-0

[Event "RUS-ch Women Rapid 2019"]
[Site "Sochi"]
[Date "2019.10.16"]
[Round "6.4"]
[White "Goltseva, Ekaterina"]
[Black "Ovod, Evgenija"]
[Result "1/2-1/2"]
[ECO "D35"]
[WhiteElo "2317"]
[BlackElo "2347"]
[Annotator "NA"]
[PlyCount "63"]
[EventDate "2019.10.15"]
[EventType "swiss"]
[EventCountry "RUS"]
[SourceTitle "playchess.com"]
[Source "ChessBase"]
[SourceQuality "1"]
[TimeControl "900+10"]

1. d4 {[%emt 0:00:00]} Nf6 {[%emt 0:00:00]} 2. c4 {[%emt 0:00:00]} e6 {[%emt 0:00:00]} 3. Nc3 {[%emt 0:00:09]} d5 {[%emt 0:00:00]} 4. cxd5 {[%emt 0:00:07]} Nxd5 {[%emt 0:00:00]} 5. e4 {[%emt 0:00:27]} Nxc3 {[%emt 0:00:00]} 6. bxc3 {[%emt 0:00:01]} c5 {[%emt 0:00:00]} 7. Rb1 {[%emt 0:00:30]} Be7 {[%emt 0:00:00]} 8. Nf3 {[%emt 0:00:26]} O-O {[%emt 0:00:01]} 9. Be2 {[%emt 0:01:06]} b6 {[%emt 0:00:28]} 10. O-O {[%emt 0:02:49]} Bb7 {[%emt 0:00:02]} 11. Qd3 {[%emt 0:00:10]} cxd4 {[%emt 0:02:25]} 12. cxd4 {[%emt 0:00:03]} Nd7 {[%emt 0:00:02]} 13. Bb2 {[%emt 0:01:47]} b5 {[%emt 0:02:48]} 14. Bc3 {[%emt 0:02:25]} a5 {[%emt 0:01:30]} 15. Qxb5 {[%emt 0:03:56]} Bxe4 {[%emt 0:00:04]} 16. Rbc1 {[%emt 0:00:39]} a4 {[%emt 0:01:05]} 17. Ne5 {[%emt 0:00:51]} Nf6 {[%emt 0:01:06]} 18. Nc6 {[%emt 0:00:14]} Bxc6 {[%emt 0:01:33]} 19. Qxc6 {[%emt 0:00:01]} Ba3 {[%emt 0:00:05]} 20. Rb1 {[%emt 0:00:34]} Nd5 {[%emt 0:00:33]} 21. Bb2 {[%emt 0:00:18]} Qe7 {[%emt 0:00:53]} 22. Rfc1 {[%emt 0:00:29]} Bd6 {[%emt 0:01:03]} 23. Bf3 {[%emt 0:00:47]} Bf4 {[%emt 0:02:04]} 24. Rc5 {[%emt 0:00:29]} Rfb8 {[%emt 0:01:36]} 25. Bxd5 {[%emt 0:00:28]} exd5 {[%emt 0:00:03]} 26. g3 {[%emt 0:00:14]} a3 {[%emt 0:01:24]} 27. gxf4 {[%emt 0:00:03]} axb2 {[%emt 0:00:04]} 28. Rxb2 {[%emt 0:00:06]} Qe1+ {[%emt 0:00:25]} 29. Kg2 {[%emt 0:00:01]} Qe4+ {[%emt 0:00:03]} 30. Kg1 {[%emt 0:00:12]} Qe1+ {[%emt 0:00:02]} 31. Kg2 {[%emt 0:00:14]} Qe4+ {[%emt 0:00:01]} 32. Kg1 {[%emt 0:00:02]} 1/2-1/2

[Event "RUS-ch Women Rapid 2019"]
[Site "Sochi"]
[Date "2019.10.16"]
[Round "6.5"]
[White "Shafigullina, Zarina"]
[Black "Styazhkina, Anna"]
[Result "1/2-1/2"]
[ECO "A06"]
[WhiteElo "2295"]
[BlackElo "2280"]
[Annotator "ChessBase"]
[PlyCount "155"]
[EventDate "2019.10.15"]
[EventType "swiss"]
[EventCountry "RUS"]
[SourceTitle "playchess.com"]
[Source "ChessBase"]
[SourceQuality "1"]
[TimeControl "900+10"]

1. Nf3 {[%emt 0:00:00]} d5 {[%emt 0:00:00]} 2. g3 {[%emt 0:00:00]} c6 {[%emt 0:00:00]} 3. Bg2 {[%emt 0:00:00]} Bg4 {[%emt 0:00:03]} 4. O-O {[%emt 0:00:15]} Nd7 {[%emt 0:00:02]} 5. d4 {[%emt 0:00:02]} e6 {[%emt 0:00:12]} 6. Nbd2 {[%emt 0:00:03]} Ngf6 {[%emt 0:00:12]} 7. Re1 {[%emt 0:00:02]} Be7 {[%emt 0:00:12]} 8. e4 {[%emt 0:00:48]} dxe4 {[%emt 0:00:50]} 9. Nxe4 {[%emt 0:00:02]} Nxe4 {[%emt 0:00:01]} 10. Rxe4 {[%emt 0:00:02]} Nf6 {[%emt 0:00:02]} 11. Re1 {[%emt 0:00:12]} O-O {[%emt 0:00:05]} 12. c3 {[%emt 0:00:02]} Qa5 {[%emt 0:00:23]} 13. h3 {[%emt 0:00:06]} Bh5 {[%emt 0:00:25]} 14. Qb3 {[%emt 0:00:10]} Qb6 {[%emt 0:01:52]} 15. Ne5 {[%emt 0:00:13]} Qxb3 {[%emt 0:00:51]} 16. axb3 {[%emt 0:00:02]} Bg6 {[%emt 0:00:01]} 17. Nxg6 {[%emt 0:01:42]} hxg6 {[%emt 0:00:02]} 18. b4 {[%emt 0:01:26]} a6 {[%emt 0:00:03]} 19. Bf4 {[%emt 0:00:01]} Nd5 {[%emt 0:00:39]} 20. Bxd5 {[%emt 0:01:16]} cxd5 {[%emt 0:00:02]} 21. Ra5 {[%emt 0:00:49]} Bd8 {[%emt 0:01:13]} 22. Ra2 {[%emt 0:01:09]} Bb6 {[%emt 0:00:22]} 23. Rea1 {[%emt 0:00:47]} Rac8 {[%emt 0:00:23]} 24. Bd6 {[%emt 0:02:16]} Rfd8 {[%emt 0:00:03]} 25. Bc5 {[%emt 0:00:11]} Bc7 {[%emt 0:00:09]} 26. b5 {[%emt 0:02:52]} axb5 {[%emt 0:00:16]} 27. Ra7 {[%emt 0:00:01]} b6 {[%emt 0:02:20]} 28. Bb4 {[%emt 0:00:15]} e5 {[%emt 0:01:21]} 29. dxe5 {[%emt 0:00:57]} Bxe5 {[%emt 0:00:13]} 30. Re1 {[%emt 0:00:01]} Bf6 {[%emt 0:00:17]} 31. Kf1 {[%emt 0:02:27]} Rc6 {[%emt 0:02:41]} 32. Be7 {[%emt 0:00:26]} Bxe7 {[%emt 0:00:11]} 33. Rexe7 {[%emt 0:00:01]} Rf6 {[%emt 0:00:19]} 34. Red7 {[%emt 0:00:34]} Re8 {[%emt 0:01:45]} 35. Rxd5 {[%emt 0:00:07]} Re3 {[%emt 0:00:11]} 36. g4 {[%emt 0:00:49]} g5 {[%emt 0:01:47]} 37. Rxg5 {[%emt 0:00:40]} Ref3 {[%emt 0:00:55]} 38. Rf5 {[%emt 0:00:02]} R6xf5 {[%emt 0:00:03]} 39. gxf5 {[%emt 0:00:01]} Rxf5 {[%emt 0:00:28]} 40. Rb7 {[%emt 0:00:02]} Rf6 {[%emt 0:00:03]} 41. Ke2 {[%emt 0:00:11]} Kh7 {[%emt 0:00:26]} 42. Ke3 {[%emt 0:00:06]} Kg6 {[%emt 0:00:05]} 43. Rd7 {[%emt 0:00:13]} Re6+ {[%emt 0:00:16]} 44. Kd3 {[%emt 0:00:42]} Kf6 {[%emt 0:00:16]} 45. f4 {[%emt 0:00:09]} Rc6 {[%emt 0:00:12]} 46. Rd5 {[%emt 0:00:13]} Rc5 {[%emt 0:00:08]} 47. Rd7 {[%emt 0:00:05]} Ke6 {[%emt 0:00:03]} 48. Rb7 {[%emt 0:00:02]} Rd5+ {[%emt 0:00:05]} 49. Ke4 {[%emt 0:00:03]} Rd6 {[%emt 0:00:08]} 50. h4 {[%emt 0:00:13]} g6 {[%emt 0:00:02]} 51. Rb8 {[%emt 0:00:06]} Rc6 {[%emt 0:00:09]} 52. Re8+ {[%emt 0:00:05]} Kf6 {[%emt 0:00:09]} 53. Kd5 {[%emt 0:00:11]} Rc5+ {[%emt 0:00:10]} 54. Ke4 {[%emt 0:00:25]} b4 {[%emt 0:00:12]} 55. Rb8 {[%emt 0:00:04]} bxc3 {[%emt 0:00:05]} 56. Rxb6+ {[%emt 0:00:02]} Kg7 {[%emt 0:00:02]} 57. bxc3 {[%emt 0:00:01]} Rxc3 {[%emt 0:00:03]} 58. f5 {[%emt 0:00:40]} Rc4+ {[%emt 0:00:17]} 59. Kf3 {[%emt 0:00:09]} gxf5 {[%emt 0:00:40]} 60. h5 {[%emt 0:00:07]} Rh4 {[%emt 0:00:06]} 61. Rb5 {[%emt 0:00:12]} Rxh5 {[%emt 0:00:04]} 62. Kf4 {[%emt 0:00:03]} Kg6 {[%emt 0:00:03]} 63. Rb6+ {[%emt 0:00:08]} f6 {[%emt 0:00:04]} 64. Rb8 {[%emt 0:00:06]} Rh4+ {[%emt 0:00:06]} 65. Kg3 {[%emt 0:00:03]} Ra4 {[%emt 0:00:22]} 66. Rg8+ {[%emt 0:00:08]} Kf7 {[%emt 0:00:04]} 67. Rb8 {[%emt 0:00:02]} Rd4 {[%emt 0:00:25]} 68. Kf3 {[%emt 0:00:16]} Ke6 {[%emt 0:00:06]} 69. Re8+ {[%emt 0:00:07]} Kf7 {[%emt 0:00:05]} 70. Ra8 {[%emt 0:00:02]} f4 {[%emt 0:00:07]} 71. Ra5 {[%emt 0:00:13]} Kg6 {[%emt 0:00:15]} 72. Rb5 {[%emt 0:00:06]} Kf7 {[%emt 0:00:29]} 73. Ra5 {[%emt 0:00:29]} Ke6 {[%emt 0:00:12]} 74. Ra6+ {[%emt 0:00:07]} Kf5 {[%emt 0:00:09]} 75. Ra5+ {[%emt 0:00:01]} Kg6 {[%emt 0:00:01]} 76. Rb5 {[%emt 0:00:03]} f5 {[%emt 0:00:05]} 77. Rb8 {[%emt 0:00:01]} Kg5 {[%emt 0:00:16]} 78. Rg8+ {[%emt 0:00:01]} 1/2-1/2